bitfinex/quotes_ETHUSD_20241104
["timestamp","ask_amount","ask_price","bid_price","bid_amount"]
[1730724619976,0.0610947,2476.6,2476.5,12.57838914]
[1730724620992,0.0610947,2476.6,2476.5,8.74343134]
[1730724622474,0.0610947,2476.6,2476.5,9.30641842]
[1730724623416,0.0610947,2476.6,2476.5,4.25447614]
[1730724624463,0.0610947,2476.6,2476.5,0.21652614]
[1730724624707,0.0610947,2476.6,2476.5,4.33522549]
[1730724625008,0.0610947,2476.6,2476.5,4.68132059]
[1730724625512,0.0610947,2476.6,2476.5,4.33522549]
[1730724625715,0.0610947,2476.6,2476.5,5.29152161]
[1730724626016,0.0610947,2476.6,2476.5,13.25919953]
[1730724626165,0.0610947,2476.6,2476.5,14.1709992]
[1730724626372,0.0610947,2476.6,2476.5,13.6209992]
[1730724627521,0.0610947,2476.6,2476.5,13.18845018]
[1730724629907,0.0610947,2476.6,2476.5,13.73845018]
[1730724630111,0.0610947,2476.6,2476.5,14.1701696]
[1730724630318,4.7e-06,2476.6,2476.5,14.64359491]
[1730724630468,0.0610947,2477.8,2477.0,0.7794]
[1730724630668,0.0610947,2477.8,2476.9,0.01]
[1730724630669,0.0610947,2477.8,2477.5,4.03624]
[1730724632712,0.08029758,2477.7,2477.4,4.03639]
[1730724632876,0.08029758,2477.7,2477.4,0.92493004]
[1730724633072,4.0969547,2477.8,2477.4,0.92493004]
[1730724633275,0.08074906,2477.7,2477.3,4.03656]
[1730724633584,0.8085,2477.6,2477.2,7.03675]
[1730724633792,4.92542205,2477.6,2477.2,4.03675]
[1730724633986,4.92542205,2477.6,2477.2,4.03672]
[1730724634503,4.92542205,2477.6,2477.2,8.07346]
[1730724634874,4.03657,2477.4,2477.0,4.03702]
[1730724635075,0.08044101,2477.3,2477.0,4.03702]
[1730724635318,0.08044101,2477.3,2477.1,4.03696]
[1730724635495,0.08044101,2477.3,2476.9,4.03715]
[1730724635972,0.08044101,2477.3,2477.0,4.03712]
[1730724636172,0.7698,2477.2,2476.8,4.03732]
[1730724636393,0.7698,2477.2,2477.0,4.03711]
[1730724636607,0.07949122,2477.1,2477.0,4.03711]
[1730724637828,0.07949122,2477.1,2476.9,8.07453]
[1730724638179,0.07949122,2477.1,2476.9,4.03723]
[1730724639689,0.08054275,2477.4,2477.2,4.03679]
[1730724640019,0.08054275,2477.4,2477.2,4.03673]
[1730724640231,0.08054275,2477.4,2477.3,4.03665]
[1730724640726,4.81728,2477.7,2477.3,4.03665]
[1730724640930,0.08054275,2477.4,2477.3,4.03665]
[1730724641232,4.81728,2477.7,2477.3,4.03665]
[1730724641529,0.7812,2477.7,2477.3,4.03665]
[1730724641707,0.08070149,2477.6,2477.3,4.03665]
[1730724641908,0.08070149,2477.6,2477.3,4.85206121]
[1730724642710,0.08070149,2477.6,2477.3,4.93278741]
[1730724643033,0.08070149,2477.6,2477.4,4.03648]
[1730724643244,0.08070149,2477.6,2477.4,4.03638]
[1730724643527,0.08070149,2477.6,2477.5,4.03632]
[1730724643725,0.08070149,2477.6,2477.5,5.00272112]
[1730724643886,0.0610947,2477.8,2477.5,5.00272112]
[1730724644081,0.0808185,2477.7,2477.6,4.03613]
[1730724644286,0.0610947,2477.8,2477.6,4.03613]
[1730724644590,0.0808185,2477.7,2477.6,4.03613]
[1730724644987,0.0610947,2477.8,2477.6,4.03613]
[1730724645332,0.0808185,2477.7,2477.6,4.03613]
[1730724645640,0.0808185,2477.7,2477.6,5.1453417]
[1730724645931,0.0610947,2477.8,2477.7,4.036]
[1730724646096,0.0610947,2477.8,2477.7,4.11671352]
[1730724647033,0.0610947,2477.8,2477.6,0.89290663]
[1730724647687,0.08087849,2477.7,2477.6,0.89290663]
[1730724648033,0.0610947,2477.8,2477.6,4.92906663]
[1730724648197,0.08087849,2477.7,2477.6,4.92906663]
[1730724648398,0.08087849,2477.7,2477.5,7.03625]
[1730724648603,4.81604,2477.7,2477.2,0.7714]
[1730724648795,0.08080149,2477.6,2477.3,0.21626026]
[1730724648991,0.08080149,2477.6,2477.4,0.21626026]
[1730724649333,4.81604,2477.7,2477.3,4.03655]
[1730724649636,0.7799,2477.7,2477.1,7.03689]
[1730724649795,4.11707446,2477.6,2477.2,4.25306071]
[1730724649993,4.11707446,2477.6,2477.2,4.03673]
[1730724650428,0.08081446,2477.6,2477.3,0.21631109]
[1730724650608,0.08081446,2477.6,2477.2,4.03673]
[1730724650812,0.08081446,2477.6,2477.2,4.11745721]
[1730724651330,0.08081446,2477.6,2477.3,4.03659]
[1730724651844,0.08081446,2477.6,2477.3,4.03658]
[1730724653093,0.08081446,2477.6,2477.3,4.03665]
[1730724653290,0.08081446,2477.6,2477.4,4.11720554]
[1730724653492,0.08081446,2477.6,2477.5,4.03632]
[1730724654233,0.0610947,2477.8,2477.5,4.03632]
[1730724654234,0.0610947,2477.8,2477.5,4.82592]
[1730724654437,0.08079326,2477.6,2477.5,4.82592]
[1730724654740,0.08079326,2477.6,2477.5,5.04231448]
[1730724654940,0.0610947,2477.8,2477.5,6.10839969]
[1730724655109,0.08079326,2477.6,2477.5,5.89200521]
[1730724655491,0.0610947,2477.8,2477.5,6.10844717]
[1730724655612,0.08079326,2477.6,2477.5,4.85602]
[1730724655814,0.0610947,2477.8,2477.5,5.07238073]
[1730724656016,0.0610947,2477.8,2477.7,4.036]
[1730724657053,0.0610947,2477.8,2477.6,4.11687386]
[1730724657054,0.0610947,2477.8,2477.6,4.03601]
[1730724657347,0.0610947,2477.8,2477.7,4.036]
[1730724657642,0.0610947,2477.8,2477.7,4.93324223]
[1730724658299,0.0610947,2477.8,2477.7,5.23036503]
[1730724658653,0.0610947,2477.8,2477.7,5.14965277]
[1730724662650,0.14209824,2477.8,2477.7,5.14965277]
[1730724662860,0.0610947,2477.8,2477.7,5.14965277]
[1730724663089,0.14209824,2477.8,2477.7,8.97925277]
[1730724663297,0.14209824,2477.8,2477.7,8.97922301]
[1730724663298,0.0610947,2477.8,2477.7,8.97922301]
[1730724663477,0.14209824,2477.8,2477.7,8.97922301]
[1730724663797,0.14214436,2477.8,2477.7,0.89724223]
[1730724663953,0.14214436,2477.8,2477.6,4.03615]
[1730724664656,0.14214436,2477.8,2477.7,4.036]
[1730724665076,0.14214436,2477.8,2477.7,4.2523548]
[1730724665275,0.14214436,2477.8,2477.7,5.0056548]
[1730724665482,0.14214436,2477.8,2477.7,5.08636267]
[1730724665689,0.14214436,2477.8,2477.7,5.91790507]
[1730724665899,0.14214436,2477.8,2477.7,9.26391705]
[1730724667118,0.0610947,2477.8,2477.7,9.26370889]
[1730724668168,0.14203047,2477.8,2477.7,1.12845778]
[1730724668474,0.14203047,2477.8,2477.4,4.79493]
[1730724668475,5.00593556,2477.8,2477.4,4.03633]
[1730724668812,5.00593556,2477.8,2477.7,4.036]
[1730724668813,0.97010556,2477.8,2477.7,4.036]
[1730724669008,0.14220556,2477.8,2477.7,4.036]
[1730724669518,0.14220556,2477.8,2477.7,4.25234783]
[1730724669811,0.14220556,2477.8,2477.6,4.03614]
[1730724670114,0.14220556,2477.8,2477.6,4.439754]
[1730724670413,0.14220556,2477.8,2477.6,0.403614]
[1730724671672,4.17803556,2477.8,2477.6,0.403614]
[1730724671879,0.14220556,2477.8,2477.6,0.403614]
[1730724674682,0.7884,2477.7,2477.3,4.46946932]
[1730724674882,0.7884,2477.7,2477.4,0.21647255]
[1730724674883,0.08069684,2477.6,2477.4,0.21647255]
[1730724675085,0.08069684,2477.6,2477.3,8.07311]
[1730724675289,0.08069684,2477.6,2477.5,4.03632]
[1730724675638,0.08069684,2477.6,2477.5,0.21651782]
[1730724675779,0.08069684,2477.6,2477.5,4.7542916]
[1730724676598,4.8853247,2477.8,2477.5,0.7179716]
[1730724676806,4.8853247,2477.8,2477.5,0.50145378]
[1730724676807,0.0809069,2477.6,2477.5,0.50145378]
[1730724676990,4.8853247,2477.8,2477.5,0.71795378]
[1730724677190,0.08092157,2477.6,2477.4,4.03638]
[1730724677390,8.9212847,2477.8,2477.5,0.2164907]
[1730724677677,8.9212847,2477.8,2477.1,4.03691]
[1730724677678,0.8006,2477.4,2477.1,4.03691]
[1730724678030,0.08067522,2477.3,2477.2,0.21652446]
[1730724680208,0.08067522,2477.3,2476.9,4.03726]
[1730724680370,4.11732522,2477.3,2477.0,1.06728802]
[1730724680573,4.03681,2477.2,2476.8,4.03738]
[1730724680873,4.11738522,2477.3,2476.9,4.2538302]
[1730724681109,4.03671,2477.3,2477.0,0.2165402]
[1730724681374,0.07969804,2477.2,2477.0,4.03713]
[1730724681804,0.8006,2477.4,2477.1,4.03688]
[1730724682035,0.8006,2477.4,2477.2,4.03679]
[1730724685551,0.8006,2477.4,2477.1,0.807401]
[1730724685844,0.8006,2477.4,2477.0,4.0371]
[1730724686047,0.8006,2477.4,2477.1,4.25342992]
[1730724686258,0.8006,2477.4,2477.1,4.03696]
[1730724687345,4.83718,2477.4,2476.9,4.38360069]
[1730724687550,4.83718,2477.4,2477.0,4.25351538]
[1730724687748,0.7646,2477.3,2476.7,0.43293855]
[1730724687951,6.152641,2477.6,2476.8,0.21645067]
[1730724687952,0.7646,2477.0,2476.8,0.21645067]
[1730724688253,2.11689918,2477.4,2476.8,0.21645067]
[1730724688254,4.80148,2477.2,2476.8,4.03745]
[1730724690064,0.7646,2477.2,2476.9,4.03728]
[1730724690733,0.7646,2477.2,2476.9,4.844753]
[1730724692552,0.07946447,2477.1,2476.9,4.844753]
[1730724693075,0.07946447,2477.1,2476.9,0.807473]
[1730724693272,0.07946447,2477.1,2476.8,4.03745]
[1730724694769,0.07946447,2477.1,2477.0,4.03714]
[1730724696641,0.07946447,2477.1,2477.0,4.03714]
[1730724698992,0.07946447,2477.1,2477.0,4.25354408]
[1730724699208,4.7899,2477.4,2477.0,4.25354408]
[1730724699356,0.07951042,2477.1,2477.0,4.03714]
[1730724699559,8.82647,2477.4,2477.0,5.14380539]
[1730724699866,0.07951042,2477.1,2477.0,4.03714]
[1730724700071,4.78987,2477.4,2477.0,0.21641715]
[1730724700405,4.0367,2477.3,2476.9,8.90248]
[1730724700585,4.11636808,2477.3,2476.9,8.90248]
[1730724700955,4.11636808,2477.3,2477.2,4.03681]
[1730724700956,0.07966808,2477.3,2477.2,4.03681]
[1730724701198,4.03623,2477.6,2477.2,4.86582934]
[1730724701401,0.07969811,2477.3,2477.2,4.86582934]
[1730724701610,0.8035,2477.3,2477.0,8.07415]
[1730724701908,0.8035,2477.3,2477.1,0.21648334]
[1730724702060,0.07964874,2477.2,2477.0,8.07415]
[1730724702254,0.07964874,2477.2,2477.1,0.21652484]
[1730724702455,0.8035,2477.3,2477.1,0.21652484]
[1730724702684,0.07965816,2477.2,2477.0,4.03705]
[1730724703096,0.8035,2477.3,2477.0,4.03705]
[1730724703269,0.07958109,2477.1,2476.9,4.03727]
[1730724703478,4.84017,2477.3,2477.0,0.21661018]
[1730724703681,4.84017,2477.3,2476.9,4.03727]
[1730724703988,4.84017,2477.3,2477.0,0.21661932]
[1730724704161,0.8035,2477.3,2477.0,4.03701]
[1730724704363,0.8035,2477.3,2477.1,0.21672559]
[1730724704568,0.8035,2477.3,2477.0,4.03701]
[1730724704769,0.8035,2477.3,2477.1,0.21672768]
[1730724705078,0.8035,2477.3,2477.0,4.03701]
[1730724705278,0.8035,2477.3,2477.1,0.21672459]
[1730724705475,0.8035,2477.3,2477.0,4.03701]
[1730724705705,0.8035,2477.3,2477.1,0.21676041]
[1730724705861,0.8261,2477.5,2477.0,0.8957714]
[1730724706065,4.0365,2477.4,2477.1,0.21675412]
[1730724706311,4.0365,2477.4,2477.0,4.03702]
[1730724706616,4.0365,2477.4,2477.1,0.21680661]
[1730724706782,4.0365,2477.4,2477.0,4.03702]
[1730724706783,4.0365,2477.4,2477.2,0.21680661]
[1730724706987,4.0365,2477.4,2477.0,4.03702]
[1730724707189,4.0365,2477.4,2477.1,0.21682142]
[1730724709589,0.7709,2477.2,2477.1,0.21690676]
[1730724711005,0.7709,2477.2,2477.1,4.60089049]
[1730724711211,0.7709,2477.2,2477.1,0.21690676]
[1730724711416,2.11503427,2477.6,2477.1,0.21690676]
[1730724711722,4.03633,2477.5,2477.2,0.21690676]
[1730724711924,4.03633,2477.5,2477.1,4.03696]
[1730724712138,4.0362,2477.6,2477.2,0.21686865]
[1730724712361,4.0362,2477.6,2477.3,0.21686865]
[1730724712511,4.0362,2477.6,2477.2,4.03673]
[1730724712839,4.0362,2477.6,2477.3,0.21687046]
[1730724713042,4.0362,2477.6,2477.2,4.03673]
[1730724713343,4.0362,2477.6,2477.3,0.21686971]
[1730724713344,6.15123427,2477.6,2477.3,0.21686971]
[1730724713642,6.15123427,2477.6,2477.2,8.07346]
[1730724713643,6.15123427,2477.6,2477.2,4.03673]
[1730724713947,6.15123427,2477.6,2477.3,0.21688191]
[1730724714104,4.03634,2477.5,2477.1,4.03695]
[1730724714500,4.03634,2477.5,2477.2,0.21688346]
[1730724714846,8.07279,2477.5,2477.3,0.21688346]
[1730724715028,2.11503427,2477.6,2477.3,4.03661]
[1730724715348,6.92209427,2477.7,2477.3,4.03661]
[1730724715651,2.11503427,2477.6,2477.3,4.03661]
[1730724715801,2.11503427,2477.6,2477.2,4.03665]
[1730724716006,6.15128427,2477.6,2477.3,0.21689154]
[1730724716323,6.15128427,2477.6,2477.2,4.03665]
[1730724716539,6.15147427,2477.5,2477.3,0.21692692]
[1730724716837,2.11733033,2477.4,2477.0,0.08073801]
[1730724717011,2.11733033,2477.6,2477.3,4.03664]
[1730724717452,2.11733033,2477.6,2477.4,0.21694359]
[1730724717746,6.15348033,2477.7,2477.3,4.03664]
[1730724718045,6.15348033,2477.7,2477.4,0.21693149]
[1730724718248,6.90848033,2477.7,2477.3,4.0366]
[1730724718399,2.87233033,2477.7,2477.4,0.21692236]
[1730724718601,2.87233033,2477.7,2477.5,0.21689481]
[1730724718801,0.0610947,2477.8,2477.5,4.03623]
[1730724718802,2.17842503,2477.8,2477.5,4.03623]
[1730724719591,2.17842503,2477.8,2477.6,4.25285567]
[1730724719699,2.17842503,2477.8,2477.7,0.21683567]
[1730724719700,4.0969347,2477.8,2477.7,0.21683567]
[1730724720020,4.03628,2477.6,2477.2,4.03674]
[1730724720342,0.789,2477.7,2477.3,0.21690202]
[1730724720526,6.15486119,2477.5,2477.1,4.03696]
[1730724720851,6.15486119,2477.5,2477.2,0.21698861]
[1730724721043,6.1548275,2477.5,2477.3,0.21698861]
[1730724721201,6.1548275,2477.5,2477.0,4.83603]
[1730724721406,6.1548275,2477.5,2477.1,4.60115667]
[1730724721643,6.1548275,2477.5,2477.2,0.21699135]
[1730724721850,6.1548275,2477.5,2477.1,4.03696]
[1730724721851,6.1548275,2477.5,2477.3,0.21699135]
[1730724722020,6.1548275,2477.5,2477.1,4.03696]
[1730724722220,6.1548275,2477.5,2477.2,0.2169838]
[1730724722403,6.1548275,2477.5,2477.3,0.2169838]
[1730724722604,0.07711757,2477.4,2477.3,4.03665]
[1730724722840,0.07711757,2477.4,2477.3,5.0690442]
[1730724723140,4.03639,2477.5,2477.3,0.21696982]
[1730724723305,6.1547975,2477.5,2477.4,0.21696982]
[1730724723507,6.1547975,2477.5,2477.0,4.83613]
[1730724723733,6.1547975,2477.5,2477.1,4.25385992]
[1730724723935,6.15563622,2477.5,2477.2,0.56427846]
[1730724724146,6.15563622,2477.5,2477.1,4.03687]
[1730724724147,4.0365,2477.4,2477.3,0.21698992]
[1730724724309,4.03672,2477.3,2476.9,4.03727]
[1730724724514,4.03672,2477.3,2477.0,0.56456747]
[1730724724705,4.03665,2477.3,2477.1,0.21713396]
[1730724725044,6.15589622,2477.3,2477.2,0.21713396]
[1730724725220,4.03665,2477.3,2477.2,0.21713396]
[1730724727034,4.03665,2477.3,2476.9,4.03729]
[1730724727262,4.03682,2477.2,2477.0,0.34752166]
[1730724727559,4.03682,2477.2,2477.1,0.21719636]
[1730724727779,5.13845162,2477.2,2477.1,0.21719636]
[1730724727935,8.02549784,2477.2,2477.1,0.21719636]
[1730724728342,4.03715,2477.0,2476.6,4.47220156]
[1730724728537,4.03738,2476.9,2476.7,0.56489346]
[1730724728826,4.03738,2476.9,2476.5,4.79283]
[1730724728827,4.80518,2476.9,2476.8,0.21725457]
[1730724729246,5.90139567,2476.9,2476.8,0.21725457]
[1730724729424,5.90139567,2476.9,2476.8,0.21724164]
[1730724729425,8.02122235,2476.9,2476.8,0.21724164]
[1730724729629,5.90139567,2476.9,2476.8,0.21724314]
[1730724729979,0.7678,2476.9,2476.8,0.21723501]
[1730724730128,2.11982668,2477.0,2476.8,0.97213501]
[1730724730337,2.11982668,2477.1,2476.9,4.25453501]
[1730724730630,2.11982668,2477.1,2477.0,0.21723501]
[1730724730631,4.03697,2477.1,2477.0,0.21723501]
[1730724730910,4.03726,2477.0,2476.6,4.03774]
[1730724731079,4.86587,2477.1,2476.7,4.60233421]
[1730724731225,8.90299,2477.1,2476.8,0.21719611]
[1730724731431,11.02225012,2477.1,2476.6,4.03774]
[1730724731644,4.03715,2477.0,2476.7,0.56476618]
[1730724731872,4.0373,2476.9,2476.8,0.21721038]
[1730724732639,4.0373,2476.9,2476.4,4.03811]
[1730724732848,4.0373,2476.9,2476.5,4.60278862]
[1730724733054,4.0373,2476.9,2476.6,0.56483862]
[1730724733391,4.0373,2476.9,2476.7,0.21723824]
[1730724733392,4.03749,2476.8,2476.7,0.21723824]
[1730724734086,4.03749,2476.8,2476.7,0.21726566]
[1730724735694,4.03749,2476.8,2476.7,0.2173006]
[1730724736568,4.03749,2476.8,2476.4,8.07613]
[1730724736884,4.03749,2476.8,2476.5,1.4478602]
[1730724737082,4.03749,2476.8,2476.6,0.21725625]
[1730724737381,4.03749,2476.8,2476.4,4.03802]
[1730724737695,0.07626093,2476.7,2476.5,0.21723254]
[1730724737984,4.03749,2476.8,2476.6,0.21723254]
[1730724738141,0.07626093,2476.7,2476.4,4.03802]
[1730724738343,4.0373,2476.9,2476.5,4.7341937]
[1730724738545,0.07633803,2476.8,2476.6,0.2172217]
[1730724738744,0.07633803,2476.8,2476.5,4.516972]
[1730724739001,0.07633803,2476.8,2476.6,0.2172026]
[1730724739282,0.07633803,2476.8,2476.5,4.516972]
[1730724739495,0.07633803,2476.8,2476.6,5.48605008]
[1730724739796,6.98393663,2477.1,2476.7,0.21717288]
[1730724739941,0.07627686,2476.7,2476.6,4.81718]
[1730724740146,4.0373,2476.9,2476.6,0.99666309]
[1730724740383,0.07635396,2476.8,2476.6,4.81723]
[1730724740595,6.98398663,2477.1,2476.7,4.03763]
[1730724740747,4.86603,2477.1,2476.7,4.03763]
[1730724741296,6.98398663,2477.1,2476.6,5.7506502]
[1730724741498,6.98398663,2477.1,2476.7,0.21710461]
[1730724741647,6.98398663,2477.1,2476.6,5.7506502]
[1730724741849,6.98398663,2477.1,2476.7,0.21710549]
[1730724742044,6.98398663,2477.1,2476.6,5.7506502]
[1730724742045,4.86603,2477.1,2476.6,5.7506502]
[1730724742268,4.03714,2477.0,2476.7,0.21710546]
[1730724742468,4.0374,2476.9,2476.6,0.7795]
[1730724743198,4.03715,2477.0,2476.7,0.21714314]
[1730724743370,4.03715,2477.0,2476.6,4.81725]
[1730724743563,4.03715,2477.0,2476.7,0.21718637]
[1730724743768,4.03715,2477.0,2476.6,4.81725]
[1730724744008,4.03715,2477.0,2476.7,0.21721895]
[1730724744312,4.03715,2477.0,2476.6,4.81725]
[1730724744507,4.03715,2477.0,2476.7,0.21725414]
[1730724744709,4.03715,2477.0,2476.6,4.81725]
[1730724744913,4.03715,2477.0,2476.7,0.21725352]
[1730724745079,4.03715,2477.0,2476.6,4.81725]
[1730724745285,4.03715,2477.0,2476.7,0.21730559]
[1730724745470,4.03715,2477.0,2476.6,4.81725]
[1730724745814,4.03716,2477.0,2476.7,0.21733867]
[1730724745975,4.03716,2477.0,2476.6,4.81725]
[1730724746311,4.03716,2477.0,2476.7,0.21733933]
[1730724746506,4.03731,2476.9,2476.6,0.7795]
[1730724746708,4.03716,2477.0,2476.6,4.81726]
[1730724746906,4.03716,2477.0,2476.7,0.2173349]
[1730724747106,4.03732,2476.9,2476.6,0.7795]
[1730724747811,4.03716,2477.0,2476.6,4.81726]
[1730724747987,4.0373,2476.9,2476.7,0.21734148]
[1730724748189,4.03716,2477.0,2476.6,0.7795]
[1730724748391,0.8021,2476.8,2476.3,4.79569]
[1730724748587,4.83964,2476.8,2476.4,4.60333349]
[1730724748916,4.83964,2476.8,2476.5,0.21741703]
[1730724749114,4.83964,2476.8,2476.6,0.21741703]
[1730724749268,4.83964,2476.8,2476.4,4.03803]
[1730724749472,4.83964,2476.8,2476.5,0.21746187]
[1730724749817,4.83964,2476.8,2476.6,0.21746187]
[1730724750016,4.83964,2476.8,2476.4,4.03803]
[1730724750214,4.0379,2476.6,2476.5,0.21743809]
[1730724750417,8.07538,2476.7,2476.5,0.21743809]
[1730724750598,4.83964,2476.8,2476.4,4.03804]
[1730724750807,4.83964,2476.8,2476.5,0.21744239]
[1730724751001,4.83964,2476.8,2476.4,4.81634]
[1730724751320,6.92138019,2477.0,2476.6,4.03778]
[1730724751498,8.84147,2477.0,2476.6,4.03778]
[1730724751703,8.84147,2477.0,2476.7,0.21740966]
[1730724751904,8.84147,2477.0,2476.5,4.03786]
[1730724752097,8.84147,2477.0,2476.6,0.21737191]
[1730724752300,4.03738,2476.9,2476.7,0.21737191]
[1730724752611,0.07361244,2476.8,2476.5,4.03786]
[1730724752818,0.07361244,2476.8,2476.6,4.25510346]
[1730724753017,0.07361244,2476.8,2476.7,0.21741346]
[1730724753187,4.80415,2477.0,2476.7,0.21741346]
[1730724753422,4.80415,2477.0,2476.8,0.21741346]
[1730724753591,0.07371489,2476.9,2476.6,4.03769]
[1730724753790,0.07371489,2476.9,2476.7,0.21746081]
[1730724754021,0.07371489,2476.9,2476.8,0.21746081]
[1730724754187,0.07371489,2476.9,2476.6,4.03769]
[1730724754393,4.86076,2476.8,2476.7,0.21749651]
[1730724754619,0.8969378,2476.8,2476.7,0.21753197]
[1730724755191,0.0736378,2476.8,2476.7,0.21753197]
[1730724755595,0.0736378,2476.8,2476.5,4.83518]
[1730724755778,0.0736378,2476.8,2476.6,0.56562782]
[1730724756127,0.0736378,2476.8,2476.7,0.21754556]
[1730724756490,4.1110978,2476.8,2476.7,0.21754556]
[1730724757105,0.0736378,2476.8,2476.7,0.21754556]
[1730724757527,4.03733,2476.9,2476.7,0.21754556]
[1730724757728,4.03733,2476.9,2476.8,0.21754556]
[1730724758051,4.03733,2476.9,2476.4,4.03809]
[1730724758256,4.0375,2476.8,2476.5,0.56589846]
[1730724758455,4.03733,2476.9,2476.6,0.21764586]
[1730724758761,4.03733,2476.9,2476.5,4.03793]
[1730724758762,4.03733,2476.9,2476.7,0.21764586]
[1730724758933,4.03733,2476.9,2476.5,4.03793]
[1730724759255,4.03733,2476.9,2476.6,0.21764287]
[1730724759425,4.03733,2476.9,2476.7,0.21764287]
[1730724759635,4.03733,2476.9,2476.5,4.03793]
[1730724759812,4.03733,2476.9,2476.6,0.56585864]
[1730724760156,4.03733,2476.9,2476.7,0.21763316]
[1730724760352,4.03733,2476.9,2476.8,0.21762933]
[1730724761859,1.91401063,2476.9,2476.2,4.03834]
[1730724762025,4.03771,2476.7,2476.3,1.00165885]
[1730724762231,4.03771,2476.7,2476.4,0.56613619]
[1730724762426,4.03771,2476.7,2476.5,0.21773729]
[1730724762632,4.03771,2476.7,2476.6,0.21773729]
[1730724762827,4.03771,2476.7,2476.2,4.03834]
[1730724763052,4.03771,2476.7,2476.3,0.65321063]
[1730724763253,4.03771,2476.7,2476.4,0.56609331]
[1730724763254,0.8082,2476.6,2476.4,0.56609331]
[1730724763559,4.846,2476.6,2476.5,0.21772015]
[1730724764788,0.8082,2476.6,2476.5,0.21772015]
[1730724767777,0.87585666,2476.6,2476.5,0.21772015]
[1730724769780,0.87585666,2476.6,2476.5,0.21760396]
[1730724771479,0.06765666,2476.6,2476.5,0.21760396]
[1730724773267,0.06765666,2476.6,2476.3,4.03819]
[1730724773438,0.06765666,2476.6,2476.4,0.56583937]
[1730724773639,0.06765666,2476.6,2476.5,0.21761503]
[1730724774166,4.10544666,2476.6,2476.5,0.21763736]
[1730724774371,0.06765666,2476.6,2476.5,0.21763736]
[1730724774838,4.10544666,2476.6,2476.5,0.21763736]
[1730724775046,8.10268236,2476.6,2476.5,0.21763736]
[1730724775744,8.10268236,2476.6,2476.5,0.2176811]
[1730724776555,8.10355057,2476.6,2476.5,0.2176811]
[1730724776889,8.10355057,2476.6,2476.2,4.03842]
[1730724777092,6.99578217,2476.6,2476.3,0.56600991]
[1730724777377,6.99578217,2476.6,2476.4,0.21768846]
[1730724777587,6.99578217,2476.6,2476.5,0.21768846]
[1730724778797,0.83795666,2476.6,2476.5,0.21768846]
[1730724779090,4.87574666,2476.6,2476.5,0.21768846]
[1730724779243,0.83795666,2476.6,2476.5,0.21768846]
[1730724779655,0.06765666,2476.6,2476.5,0.21768846]
[1730724779863,4.10544666,2476.6,2476.5,0.21768846]
[1730724780101,6.22548217,2476.6,2476.5,0.21768846]
[1730724780596,2.18769217,2476.6,2476.5,0.21768846]
[1730724780757,2.18747819,2476.6,2476.5,0.21768846]
[1730724781381,6.22526819,2476.6,2476.5,0.21768846]
[1730724782456,2.18747819,2476.6,2476.5,0.21768846]
[1730724782789,0.06765666,2476.6,2476.3,4.03816]
[1730724782951,0.06765666,2476.6,2476.5,0.2176763]
[1730724784190,0.06765666,2476.6,2476.5,5.0814263]
[1730724784394,0.06765666,2476.6,2476.5,6.34974908]
[1730724784557,6.15683888,2476.9,2476.5,6.34974908]
[1730724784754,2.11952888,2476.8,2476.6,0.56598218]
[1730724784954,2.11952888,2476.8,2476.7,0.2176763]
[1730724785716,6.15698888,2476.8,2476.7,0.2176763]
[1730724786279,6.15698888,2476.8,2476.5,0.8258]
[1730724786567,6.15698888,2476.8,2476.6,0.21772053]
[1730724786798,6.15698888,2476.8,2476.7,0.21772053]
[1730724787200,6.78677617,2476.8,2476.7,0.21772053]
[1730724787356,4.66727729,2476.8,2476.4,4.03803]
[1730724787709,6.1573114,2476.8,2476.5,0.56621596]
[1730724787858,6.1573114,2476.8,2476.2,0.7882]
[1730724787859,6.1575214,2476.7,2476.6,0.21776797]
[1730724788995,4.0377,2476.7,2476.6,0.21776797]
[1730724789194,6.15761739,2476.7,2476.6,0.21776797]
[1730724789894,4.03781,2476.6,2476.2,4.82654]
[1730724790097,4.03781,2476.6,2476.3,0.56628663]
[1730724790258,4.03781,2476.6,2476.4,0.56628663]
[1730724790454,4.03781,2476.6,2476.5,0.56628663]
[1730724792877,2.11991739,2476.9,2476.8,4.03746]
[1730724793070,2.11991739,2476.9,2476.8,4.25525573]
[1730724793308,2.11991739,2476.9,2476.8,4.25525177]
[1730724793507,2.11991739,2477.0,2476.8,4.60367948]
[1730724793797,2.12005042,2477.0,2476.9,0.21779177]
[1730724795316,2.11993703,2477.0,2476.9,0.21779177]
[1730724796746,2.11993703,2477.0,2476.9,0.21770345]
[1730724797820,2.1833305,2477.0,2476.9,0.21770345]
[1730724798493,2.18298069,2477.0,2476.9,0.21770345]
[1730724800543,2.18298069,2477.0,2476.9,0.21766716]
[1730724801097,2.18298069,2477.0,2476.9,0.98676716]
[1730724801437,0.06339347,2477.0,2476.9,1.65379005]
[1730724802345,0.06339347,2477.0,2476.9,1.43612289]
[1730724802546,0.06339347,2477.0,2476.9,1.65376129]
[1730724803309,2.18298069,2477.0,2476.7,0.7946]
[1730724803516,6.22016069,2477.0,2476.8,0.21767947]
[1730724803700,6.22016069,2477.0,2476.7,4.83223]
[1730724804044,6.22016069,2477.0,2476.8,0.21771186]
[1730724804226,2.18298069,2477.0,2476.7,5.78647094]
[1730724804405,2.18298069,2477.0,2476.8,0.21769107]
[1730724804607,2.18298069,2477.0,2476.7,5.78647094]
[1730724804805,2.18298069,2477.0,2476.8,0.21768661]
[1730724805144,4.0373,2476.9,2476.7,0.7946]
[1730724805299,4.0373,2476.9,2476.8,0.21773452]
[1730724805300,4.93159052,2476.9,2476.8,0.21773452]
[1730724806098,0.89429052,2476.9,2476.8,0.21773452]
[1730724806514,4.93159052,2476.9,2476.8,0.21773452]
[1730724807340,0.89429052,2476.9,2476.8,0.21773452]
[1730724807546,0.89429052,2476.9,2476.8,0.21777694]
[1730724809335,0.89429052,2476.9,2476.6,4.03777]
[1730724809517,4.93166052,2476.9,2476.6,0.886444]
[1730724809718,2.18277774,2476.9,2476.6,4.03771]
[1730724809934,0.06319052,2476.9,2476.6,4.03771]
[1730724810966,0.06319052,2476.9,2476.7,0.21772895]
[1730724811135,0.06319052,2476.9,2476.8,0.21772895]
[1730724811338,2.18277774,2476.9,2476.8,0.43547001]
[1730724811537,2.18277774,2476.9,2476.8,0.21774106]
[1730724811538,0.06319052,2476.9,2476.8,0.21774106]
[1730724818282,0.06319052,2476.9,2476.6,4.03773]
[1730724818588,0.06319052,2476.9,2476.7,0.56625097]
[1730724818881,0.06319052,2476.9,2476.8,0.21778248]